bitfinex/quotes_ETHUSD_20230117
["timestamp","ask_amount","ask_price","bid_price","bid_amount"]
[1673972135045,1.62371074,1566.1,1566.0,34.13419841]
[1673972135271,1.62371074,1566.1,1566.0,33.13419841]
[1673972135677,0.098,1566.3,1566.0,37.77482248]
[1673972135903,11.49852373,1566.7,1566.2,1.0]
[1673972136115,1.50732373,1566.7,1566.4,1.295]
[1673972136304,1.50732373,1566.7,1566.6,6.38325]
[1673972136305,1.40932373,1566.7,1566.6,6.38325]
[1673972136532,1.40932373,1566.7,1566.6,28.64962407]
[1673972136769,0.06074053,1567.1,1566.7,2.86496241]
[1673972137076,0.06074053,1567.1,1567.0,20.37573881]
[1673972137286,0.06074053,1567.1,1567.0,23.49236288]
[1673972137498,0.06074053,1567.1,1567.0,26.72236288]
[1673972137721,0.06074053,1567.1,1567.0,29.53139917]
[1673972142827,0.06074053,1567.1,1567.0,26.38164078]
[1673972142828,1.03074053,1567.1,1567.0,26.38164078]
[1673972143039,1.03074053,1567.1,1567.0,20.57260449]
[1673972143250,1.03074053,1567.1,1567.0,17.45598042]
[1673972144090,1.03074053,1567.1,1567.0,11.07436042]
[1673972144360,1.03074053,1567.1,1566.9,0.066]
[1673972144361,1.06035779,1567.1,1566.9,0.066]
[1673972144525,2.56283578,1567.0,1566.8,6.38242]
[1673972144970,2.4568,1567.0,1566.8,12.76485]
[1673972145194,0.4788,1567.0,1566.8,12.76485]
[1673972146416,0.56915779,1567.1,1566.8,12.76485]
[1673972147605,0.56915779,1567.1,1566.8,11.81480182]
[1673972148349,0.56915779,1567.1,1566.8,5.43237182]
[1673972148538,0.56915779,1567.1,1566.7,6.44856]
[1673972148753,1.0,1567.0,1566.7,6.38256]
[1673972149086,1.40043762,1567.1,1566.7,6.38256]
[1673972149233,0.56915779,1567.1,1566.7,6.38256]
[1673972149448,0.56915779,1567.1,1566.7,15.88202407]
[1673972150140,0.06074053,1567.1,1566.9,19.14606]
[1673972151269,0.06074053,1567.1,1566.9,12.76404]
[1673972151440,0.06074053,1567.1,1566.9,19.14606]
[1673972152126,0.06074053,1567.1,1566.9,21.705508]
[1673972152337,0.06074053,1567.1,1567.0,3.11662407]
[1673972152764,0.06074053,1567.1,1567.0,22.26148407]
[1673972153288,0.06074053,1567.1,1567.0,25.26148407]
[1673972153447,0.06074053,1567.1,1567.0,22.14486]
[1673972153813,1.03074053,1567.1,1567.0,22.14486]
[1673972154190,0.06074053,1567.1,1567.0,28.37671687]
[1673972155965,0.06074053,1567.1,1567.0,25.2600928]
[1673972156219,0.06074053,1567.1,1567.0,22.14486]
[1673972157644,0.06074053,1567.1,1567.0,25.26148407]
[1673972158698,0.06074053,1567.1,1567.0,26.55148407]
[1673972159371,0.06074053,1567.2,1567.0,26.55148407]
[1673972159372,0.06074053,1567.2,1567.0,26.78148407]
[1673972159588,0.06074053,1567.2,1567.1,26.55525407]
[1673972159742,0.06074053,1567.2,1567.1,30.81010348]
[1673972160713,0.06142684,1567.3,1567.1,32.33410348]
[1673972160921,0.06328163,1567.5,1567.3,1.061]
[1673972161136,0.06328163,1567.5,1567.4,3.11662407]
[1673972161366,0.06328163,1567.5,1567.4,32.24824648]
[1673972161732,1.03328163,1567.5,1567.4,22.13997]
[1673972162528,1.03328163,1567.5,1567.4,19.13997]
[1673972162846,1.03328163,1567.5,1567.4,17.4514058]
[1673972163422,0.06328163,1567.5,1567.4,17.4514058]
[1673972164803,0.06328163,1567.5,1567.4,24.86402987]
[1673972165015,0.06328163,1567.5,1567.4,27.99504886]
[1673972166299,0.06328163,1567.5,1567.4,28.22504886]
[1673972167269,0.06328163,1567.5,1567.4,27.99504886]
[1673972170570,0.05869003,1567.7,1567.6,33.90736648]
[1673972170843,0.05869003,1567.7,1567.6,35.20836648]
[1673972171615,0.05869003,1567.7,1567.6,35.43836648]
[1673972172262,0.05869003,1567.7,1567.6,35.20836648]
[1673972172686,0.05869003,1567.7,1567.6,33.90636648]
[1673972173090,0.06345518,1567.9,1567.7,1.0]
[1673972173302,0.06345518,1567.9,1567.8,28.73006407]
[1673972173632,0.06345518,1567.9,1567.8,31.73006407]
[1673972174994,0.06345518,1567.9,1567.8,33.03206407]
[1673972176975,0.06345518,1567.9,1567.8,34.56406407]
[1673972177448,5.18e-06,1567.9,1567.8,34.56406407]
[1673972177624,5.18e-06,1567.9,1567.8,41.20906407]
[1673972178612,5.18e-06,1567.9,1567.8,34.56406407]
[1673972179151,5.18e-06,1567.9,1567.8,41.20906407]
[1673972179743,5.18e-06,1567.9,1567.8,47.58742407]
[1673972180390,0.07150558,1568.2,1567.9,13.02287482]
[1673972180563,0.07150558,1568.2,1568.1,2.604]
[1673972180796,0.07150558,1568.2,1568.1,31.22918407]
[1673972181008,0.07150558,1568.2,1568.1,31.62518407]
[1673972181958,1.04150558,1568.2,1568.1,31.62518407]
[1673972182296,1.04150558,1568.2,1568.1,25.24804407]
[1673972182297,0.07150558,1568.2,1568.1,25.24804407]
[1673972182640,1.04150558,1568.2,1568.1,19.71628516]
[1673972182800,1.04150558,1568.2,1568.1,17.44354313]
[1673972183018,1.51990558,1568.2,1568.1,17.44354313]
[1673972183832,0.54990558,1568.2,1568.1,17.44354313]
[1673972184043,0.54990558,1568.2,1568.1,20.44354313]
[1673972184460,0.54990558,1568.2,1568.1,23.5601672]
[1673972184461,0.07150558,1568.2,1568.1,23.5601672]
[1673972184773,0.07150558,1568.2,1568.1,26.56052392]
[1673972184774,1.94177882,1568.2,1568.1,26.56052392]
[1673972186323,1.94177882,1568.2,1568.1,23.5601672]
[1673972187307,1.94177882,1568.2,1568.1,23.7901672]
[1673972187537,1.94177882,1568.2,1568.1,22.84091467]
[1673972188137,1.94177882,1568.2,1568.1,24.7796564]
[1673972188353,0.06415367,1568.3,1568.2,3.47796564]
[1673972188619,0.07150558,1568.6,1568.4,6.645]
[1673972188777,0.07150558,1568.6,1568.5,31.61866407]
[1673972188984,0.07150558,1568.6,1568.5,32.4854058]
[1673972189227,0.07150558,1568.6,1568.5,36.17504638]
[1673972189457,0.07150558,1568.6,1568.5,35.53830465]
[1673972191873,0.07150558,1568.6,1568.5,22.12653]
[1673972192103,1.04150558,1568.6,1568.5,22.12653]
[1673972192403,1.04150558,1568.6,1568.5,19.12653]
[1673972192588,0.07150558,1568.6,1568.5,19.12653]
[1673972193348,0.07150558,1568.6,1568.5,22.24315407]
[1673972193506,0.07150558,1568.6,1568.5,28.11162748]
[1673972194658,0.54980558,1568.6,1568.5,28.11162748]
[1673972194946,0.07150558,1568.6,1568.5,25.24315407]
[1673972197719,5.58e-06,1568.6,1568.5,25.47315407]
[1673972197930,5.58e-06,1568.6,1568.5,32.7548958]
[1673972198259,5.58e-06,1568.6,1568.5,34.0568958]
[1673972198870,2.84e-06,1568.7,1568.6,7.645]
[1673972199089,0.07265883,1568.9,1568.7,7.645]
[1673972199333,0.07265883,1568.9,1568.8,28.61378407]
[1673972199585,0.07265883,1568.9,1568.8,31.84378407]
[1673972200141,0.06704555,1569.0,1568.8,38.48878407]
[1673972200360,10.5617,1569.3,1568.9,14.29362407]
[1673972200688,10.5617,1569.3,1569.1,4.40962407]
[1673972200689,24.8994,1569.3,1569.1,4.40962407]
[1673972200904,14.4367,1569.3,1569.2,22.70451594]
[1673972201564,0.099,1569.3,1569.2,22.70451594]
[1673972201737,1.5055868,1569.4,1569.2,22.70451594]
[1673972201927,1.5055868,1569.4,1569.2,19.58789187]
[1673972202139,1.5055868,1569.4,1569.2,16.21424131]
[1673972202140,2.91344781,1569.4,1569.2,16.21424131]
[1673972202385,2.14574829,1569.4,1569.1,6.43894]
[1673972202718,0.96819127,1569.3,1569.0,0.066]
[1673972203038,3.95757921,1569.3,1569.0,4.75253266]
[1673972203295,0.4781,1569.2,1569.1,3.11662407]
[1673972203478,0.4781,1569.2,1569.1,22.23586407]
[1673972203620,0.4781,1569.2,1569.1,24.94130374]
[1673972203827,0.4781,1569.3,1569.1,24.94130374]
[1673972204184,0.4781,1569.3,1569.2,3.11662407]
[1673972204372,0.4781,1569.3,1569.2,22.23463407]
[1673972205513,1.5055868,1569.4,1569.2,22.23463407]
[1673972205723,1.5055868,1569.4,1569.3,3.11662407]
[1673972205988,0.56701279,1569.4,1569.3,22.23340407]
[1673972206177,0.56701279,1569.4,1569.3,19.11678]
[1673972207987,0.56701279,1569.4,1569.3,22.23340407]
[1673972208142,0.08901279,1569.4,1569.3,25.23340407]
[1673972208349,0.08901279,1569.4,1569.3,28.40061148]
[1673972209035,0.08901279,1569.4,1569.3,25.40061148]
[1673972210349,0.08901279,1569.4,1569.3,22.23340407]
[1673972211037,2.06701279,1569.4,1569.2,12.81134]
[1673972211197,0.4781,1569.3,1569.2,19.11801]
[1673972211406,0.4281,1569.3,1569.2,19.11801]
[1673972211841,0.56701279,1569.4,1569.2,22.23463407]
[1673972212055,0.08901279,1569.4,1569.3,22.23340407]
[1673972212715,1.05901279,1569.4,1569.3,9.37099312]
[1673972212932,1.05901279,1569.4,1569.3,2.99873312]
[1673972213153,2.4755868,1569.4,1569.2,12.81113]
[1673972213384,0.56701279,1569.4,1569.3,6.37226]
[1673972213879,0.56701279,1569.4,1569.3,12.74452]
[1673972214262,0.56701279,1569.4,1569.3,24.78893407]
[1673972214898,0.56701279,1569.4,1569.3,22.23340407]
[1673972215713,0.08901279,1569.4,1569.3,22.23340407]
[1673972215973,0.08901279,1569.4,1569.3,19.70354376]
[1673972216183,0.08901279,1569.4,1569.3,22.70354376]
[1673972218974,1.05901279,1569.4,1569.3,3.0]
[1673972219201,1.05901279,1569.4,1569.2,6.43832]
[1673972219202,1.21271407,1569.4,1569.2,6.43832]
[1673972219414,1.21271407,1569.4,1569.2,6.37232]
[1673972219619,1.21271407,1569.4,1569.2,4.07732]
[1673972220398,1.21271407,1569.4,1569.2,10.44999]
[1673972220714,0.24271407,1569.4,1569.2,4.07732]
[1673972221874,0.24271407,1569.4,1569.2,10.44999]
[1673972222061,1.18128808,1569.4,1569.2,4.07732]
[1673972222495,2.09612881,1569.3,1569.1,12.81162]
[1673972222651,4.33670282,1569.3,1569.0,0.066]
[1673972223003,6.74456383,1569.3,1568.9,4.68666034]
[1673972223219,2.52012045,1569.2,1568.9,4.68666034]
[1673972223598,3.26563148,1569.2,1568.9,4.68666034]
[1673972223844,1.68408504,1569.2,1568.9,11.06055034]
[1673972224161,0.93857401,1569.2,1568.9,11.06055034]
[1673972224368,2.52013725,1569.2,1568.9,11.06055034]
[1673972224776,3.92799826,1569.2,1568.9,4.68666034]
[1673972225250,0.93857401,1569.2,1568.9,4.68666034]
[1673972225412,2.52012549,1569.2,1568.9,4.68666034]
[1673972225622,0.93857401,1569.1,1568.9,4.68666034]
[1673972225879,0.93857401,1569.1,1568.9,11.06055034]
[1673972226108,2.34643502,1569.2,1568.9,11.06055034]
[1673972226319,2.34643502,1569.2,1568.9,17.43444034]
[1673972226320,0.93857401,1569.1,1568.9,17.43444034]
[1673972226683,2.52015998,1569.1,1568.9,17.43444034]
[1673972227431,2.52015998,1569.1,1568.9,20.12188837]
[1673972227683,2.52015998,1569.1,1568.9,19.17297385]
[1673972228213,2.52015998,1569.1,1569.0,3.11662407]
[1673972228437,13.67316101,1569.2,1569.0,6.11662407]
[1673972228438,12.2653,1569.2,1569.0,6.11662407]
[1673972228620,12.2653,1569.2,1569.1,22.23586407]
[1673972228809,0.08901279,1569.4,1569.1,36.95146848]
[1673972229000,0.093,1569.2,1569.1,34.47158614]
[1673972229210,0.093,1569.2,1569.1,28.05658614]
[1673972229442,0.08901279,1569.4,1569.1,27.82658614]
[1673972231524,2.60883737,1569.4,1569.1,25.71396407]
[1673972231754,2.51990703,1569.3,1569.1,15.74616]
[1673972231995,0.96819127,1569.3,1569.1,12.74616]
[1673972232210,2.37605228,1569.3,1569.1,12.74616]
[1673972232414,0.93857401,1569.2,1569.1,12.74616]
[1673972232626,2.52293492,1569.2,1569.1,10.21587028]
[1673972232840,2.51993492,1569.2,1569.1,10.21587028]
[1673972232994,2.51993492,1569.2,1569.1,16.58895028]
[1673972233416,2.51993492,1569.2,1569.1,10.21587028]
[1673972233696,1.53647827,1569.3,1569.1,10.21587028]
[1673972233697,2.47505228,1569.3,1569.1,10.21587028]
[1673972233855,2.51997209,1569.2,1569.1,10.21587028]
[1673972234693,2.52297209,1569.2,1569.1,10.21587028]
[1673972234911,3.9278331,1569.2,1569.1,10.21587028]
[1673972235135,2.51753977,1569.2,1569.1,10.21587028]
[1673972235472,2.08059958,1569.3,1569.1,10.21587028]
[1673972235622,1.98159958,1569.3,1569.1,10.21587028]
[1673972235841,0.18801279,1569.4,1569.2,3.11662407]
[1673972236046,0.08901279,1569.4,1569.3,4.41862407]
[1673972236250,1.67012551,1569.4,1569.3,17.16314407]
[1673972236497,1.67012551,1569.4,1569.3,23.53540407]
[1673972236899,0.08901279,1569.4,1569.3,23.53540407]
[1673972237200,0.08901279,1569.4,1569.3,29.59648565]
[1673972237741,0.08901279,1569.4,1569.3,30.07458565]
[1673972238416,0.08901279,1569.4,1569.3,29.59648565]
[1673972239464,2.79e-06,1569.4,1569.3,31.53522738]
[1673972239615,1.50686101,1569.6,1569.5,25.4858]
[1673972239616,1.40786101,1569.6,1569.5,25.4858]
[1673972239835,1.40786101,1569.6,1569.5,43.08050407]
[1673972240030,1.40786101,1569.6,1569.5,44.1952458]
[1673972240243,0.75626101,1569.6,1569.5,44.1952458]
[1673972240501,6.101e-05,1569.6,1569.5,44.1952458]
[1673972241295,3.3213769,1570.0,1569.7,6.645]
[1673972241512,3.3213769,1570.0,1569.9,9.76162407]
[1673972241723,3.3213769,1570.0,1569.9,23.73128407]
[1673972241933,3.3213769,1570.0,1569.9,17.2009258]
[1673972242192,3.3213769,1570.0,1569.9,19.9709258]
[1673972242406,2.2313769,1570.0,1569.9,20.2009258]
[1673972242736,1.5841769,1570.0,1569.9,23.56811438]
[1673972243089,1.5841769,1570.0,1569.9,23.33811438]
[1673972243502,1.5841769,1570.0,1569.9,22.22347265]
[1673972243745,4.09468293,1570.2,1569.9,19.33418407]
[1673972244080,3.99568293,1570.2,1569.9,18.85628407]
[1673972244299,3.99568293,1570.2,1569.9,12.48645407]
[1673972244467,3.99568293,1570.2,1570.1,12.73804]
[1673972244678,3.99568293,1570.2,1570.1,15.73804]
[1673972244888,3.99568293,1570.2,1570.1,21.38365148]
[1673972246239,3.99568293,1570.2,1570.1,18.85466407]
[1673972248196,3.99568293,1570.2,1570.1,3.0]
[1673972248666,3.99568293,1570.2,1570.0,12.80444]
[1673972248667,3.99568293,1570.2,1570.0,6.43521]
[1673972248878,3.99568293,1570.2,1570.0,6.36921]
[1673972249511,1.04173568,1570.2,1570.0,4.68327102]
[1673972249915,1.19398925,1570.2,1569.9,13.27419383]
[1673972250124,1.19398925,1570.2,1569.9,13.21019383]
[1673972250580,0.4778,1570.1,1569.9,13.21019383]
[1673972250794,1.67178925,1570.2,1569.9,13.21019383]
[1673972251003,13.92003568,1570.2,1569.9,13.21019383]
[1673972251172,15.42924113,1570.2,1569.9,13.21019383]
[1673972251382,14.01903568,1570.2,1570.0,4.43764345]
[1673972251594,12.60056185,1570.2,1570.1,22.22368407]
[1673972251803,0.20006185,1570.2,1570.0,6.43524]
[1673972252063,0.10106185,1570.2,1570.0,15.85510407]
[1673972252461,0.57886185,1570.2,1570.0,15.85510407]
[1673972252650,0.57886185,1570.2,1570.0,22.22452407]
[1673972252860,0.10106185,1570.2,1570.0,24.75357648]
[1673972253385,0.10106185,1570.2,1570.1,7.40662407]
[1673972253662,0.10106185,1570.2,1570.1,26.51368407]
[1673972254120,0.10106185,1570.2,1570.1,30.77627438]
[1673972254333,0.10106185,1570.2,1570.1,27.1504258]
[1673972254565,0.10106185,1570.2,1570.1,31.42639762]
[1673972254776,0.10106185,1570.2,1570.1,41.9272462]
[1673972255293,0.10106185,1570.2,1570.1,31.65639762]
[1673972255548,0.10106185,1570.2,1570.1,30.13639762]
[1673972255703,0.10106185,1570.2,1570.1,29.49965589]
[1673972255907,0.10106185,1570.2,1570.1,25.22368407]
[1673972256730,0.10106185,1570.2,1570.1,25.8604258]
[1673972257460,0.10106185,1570.2,1570.1,29.48627438]
[1673972257650,0.10106185,1570.2,1570.1,32.31527438]
[1673972257868,0.10106185,1570.2,1570.1,28.6894258]
[1673972258077,0.10106185,1570.2,1570.1,33.11929762]
[1673972258255,0.10106185,1570.2,1570.1,31.82129762]
[1673972259039,0.10106185,1570.2,1570.1,31.59129762]
[1673972259257,0.10106185,1570.2,1570.1,30.95455589]
[1673972259569,0.10106185,1570.2,1570.1,31.59129762]
[1673972259924,0.10106185,1570.2,1570.1,29.65355589]
[1673972261229,1.07106185,1570.2,1570.1,29.65355589]
[1673972261462,0.10106185,1570.2,1570.1,25.22368407]
[1673972261828,1.07106185,1570.2,1570.1,25.22368407]
[1673972262064,1.07106185,1570.2,1570.1,22.10706]
[1673972262279,1.07106185,1570.2,1570.0,6.43524]
[1673972262510,2.07106185,1570.2,1570.0,6.36924]
[1673972262697,1.07106185,1570.2,1570.0,6.36924]
[1673972263084,1.07106185,1570.2,1570.0,19.10808]
[1673972263395,3.47905804,1570.2,1569.9,12.80539]
[1673972263602,0.4778,1570.1,1569.9,12.73939]
[1673972264235,0.4778,1570.1,1569.9,19.10922]
[1673972265024,0.4778,1570.1,1569.9,6.36962]
[1673972266603,1.4778,1570.1,1569.9,6.36962]
[1673972266765,0.4778,1570.1,1569.9,6.36962]
[1673972267212,9.7861053,1570.2,1569.9,6.36962]
[1673972268061,8.4841053,1570.2,1569.9,6.36962]
[1673972268271,2.1154753,1570.2,1569.9,6.36962]
[1673972268484,0.10106185,1570.2,1570.0,3.11662407]
[1673972268672,0.10106185,1570.2,1570.1,6.36902]
[1673972269016,0.10106185,1570.2,1570.1,12.73804]
[1673972269195,0.57886185,1570.2,1570.1,12.73804]
[1673972269391,0.10106185,1570.2,1570.1,12.73804]
[1673972269807,0.10106185,1570.2,1570.1,24.45265448]
[1673972270050,0.10106185,1570.2,1570.1,25.75165448]
[1673972270226,0.10106185,1570.2,1570.1,28.75165448]
[1673972272964,1.07106185,1570.2,1570.1,27.45265448]
[1673972273294,0.10106185,1570.2,1570.1,25.22368407]
[1673972276112,0.10106185,1570.2,1570.1,26.52210995]
[1673972276789,1.07106185,1570.2,1570.1,25.22210995]
[1673972277017,1.07106185,1570.2,1570.1,25.22010995]
[1673972277322,1.07106185,1570.2,1570.1,18.85108995]
[1673972278057,0.10106185,1570.2,1570.1,18.85108995]
[1673972278249,0.10106185,1570.2,1570.1,15.73446588]
[1673972278632,1.04173568,1570.2,1570.1,15.73446588]
[1673972278872,2.62208039,1570.2,1570.1,18.58834647]
[1673972279082,0.10106185,1570.2,1570.1,28.07399054]
[1673972282974,0.10106185,1570.2,1570.1,21.70497054]
[1673972283310,2.11973568,1570.2,1570.1,3.0]
[1673972283510,3.7000332,1570.2,1570.1,9.36902]
[1673972283719,2.6220332,1570.2,1570.1,9.36902]
[1673972284136,2.6220332,1570.2,1570.1,15.73804]
[1673972284466,0.10106185,1570.2,1570.1,27.44099707]
[1673972286668,2.11973568,1570.2,1570.1,18.85466407]
[1673972287030,1.04173568,1570.2,1570.1,18.85466407]
[1673972287246,2.62203953,1570.2,1570.1,18.85466407]
[1673972287391,0.10106185,1570.2,1570.1,18.85466407]
[1673972287593,0.10106185,1570.2,1570.1,25.22368407]
[1673972287805,0.10106185,1570.2,1570.1,28.38956148]
[1673972289389,2.11973568,1570.2,1570.1,18.85466407]
[1673972289758,2.62205778,1570.2,1570.1,12.48564407]
[1673972290158,4.03226323,1570.2,1570.1,12.48564407]
[1673972290548,3.0915894,1570.2,1570.1,12.48564407]
[1673972291082,3.0915894,1570.2,1570.0,6.43509]
[1673972291309,2.52362107,1570.1,1570.0,6.36909]
[1673972293586,2.52362107,1570.1,1570.0,12.73851]
[1673972293796,1.14336082,1570.2,1570.0,19.10793]
[1673972294064,1.04436082,1570.2,1570.0,19.10793]
[1673972295305,1.04436082,1570.2,1570.0,22.22455407]
[1673972295810,4.03493289,1570.2,1570.0,15.85513407]
[1673972296021,2.45456627,1570.2,1570.0,15.85513407]
[1673972296656,1.04436082,1570.2,1570.1,3.11662407]
[1673972296878,4.0349177,1570.2,1570.1,9.48564407]
[1673972297301,3.09161873,1570.2,1570.0,12.80451]
[1673972297484,20.51726545,1570.1,1569.9,0.066]
[1673972297714,10.30319841,1570.0,1569.7,0.066]
[1673972297936,3.55377156,1569.9,1569.5,0.066]
[1673972298126,6.37023,1569.8,1569.4,15.47312747]
[1673972298336,6.46923,1569.8,1569.4,2.72982747]
[1673972298542,0.478,1569.7,1569.3,1.11659457]
[1673972298794,15.74361395,1569.7,1569.3,3.21836764]
[1673972299000,16.94129144,1569.7,1569.3,3.21836764]
[1673972299152,17.94129144,1569.7,1569.3,3.21836764]
[1673972299369,17.94129144,1569.7,1569.3,0.10174357]
[1673972299370,2.52405836,1569.6,1569.3,0.10174357]
[1673972299624,0.94310029,1569.6,1569.3,0.10174357]
[1673972299787,6.84945,1569.5,1569.3,0.09945196]
[1673972299999,6.94845,1569.5,1569.3,0.09945196]
[1673972300317,8.60485077,1569.5,1569.3,0.09945196]
[1673972300858,1.0,1569.4,1569.3,0.09945196]
[1673972301048,2.11561726,1569.4,1569.3,0.09945196]
[1673972301734,13.1927,1569.5,1569.3,0.09945196]
[1673972302729,19.56422,1569.5,1569.3,0.09945196]
[1673972303102,22.16071673,1569.5,1569.3,0.09945196]
[1673972303419,15.78919673,1569.5,1569.3,0.09945196]
[1673972303628,13.1927,1569.5,1569.3,0.09945196]
[1673972303789,12.7147,1569.5,1569.3,3.21607603]
[1673972304200,12.7147,1569.5,1569.3,0.09945196]
[1673972304535,13.1927,1569.5,1569.3,0.09945196]
[1673972305842,13.1927,1569.5,1569.3,6.47163196]
[1673972306365,13.1927,1569.5,1569.3,22.99625737]
[1673972306579,12.7147,1569.5,1569.4,3.11662407]
[1673972306757,12.7147,1569.5,1569.4,23.53420407]
[1673972307206,12.7147,1569.5,1569.4,9.48848407]
[1673972307353,0.099,1569.5,1569.4,12.48848407]
[1673972307568,10.6161,1569.7,1569.4,14.45744381]
[1673972309091,10.6161,1569.7,1569.4,3.0]
[1673972309301,24.65257,1569.7,1569.3,0.16545196]
[1673972309511,31.0234,1569.7,1569.3,0.09945196]
[1673972309883,1.0,1569.6,1569.3,0.09945196]
[1673972310212,16.94473,1569.6,1569.3,0.09945196]
[1673972310427,17.04373,1569.6,1569.3,0.09945196]
[1673972310964,16.04373,1569.6,1569.3,0.09945196]
[1673972311362,1.0,1569.5,1569.3,0.09945196]
[1673972311597,21.91722726,1569.5,1569.3,0.09945196]
[1673972311788,2.19172273,1569.4,1569.3,0.09945196]
[1673972312217,15.93544273,1569.4,1569.3,0.09945196]
[1673972312441,15.03444273,1569.4,1569.3,0.09945196]
[1673972312612,27.78584273,1569.4,1569.3,0.09945196]
[1673972313302,34.15770273,1569.4,1569.3,0.09945196]
[1673972313486,34.63570273,1569.4,1569.3,0.09945196]
[1673972313985,45.13710273,1569.4,1569.3,0.09945196]
[1673972314406,46.43910273,1569.4,1569.3,0.09945196]
[1673972314613,46.66910273,1569.4,1569.3,0.04945196]
[1673972315504,46.43910273,1569.4,1569.3,0.04945196]
[1673972316201,40.06724273,1569.4,1569.3,0.04945196]
[1673972316392,38.76524273,1569.4,1569.3,0.04945196]
[1673972317064,45.13710273,1569.4,1569.3,0.04945196]
[1673972319131,46.66910273,1569.4,1569.3,0.04945196]
[1673972319497,20.11678,1569.3,1569.2,0.0492481]
[1673972319707,26.09809627,1569.3,1569.2,0.0492481]
[1673972320231,26.32809627,1569.3,1569.2,0.0492481]
[1673972320444,30.74672034,1569.3,1569.2,0.0492481]
[1673972320646,1.0,1569.2,1569.1,0.09718143]
[1673972320971,1.0,1569.2,1568.9,0.09486547]
[1673972320972,1.1,1569.1,1568.9,0.09486547]
[1673972321137,1.1,1569.1,1568.6,0.10488915]
[1673972321138,2.18318142,1568.7,1568.6,0.10488915]
[1673972321329,21.30728142,1568.7,1568.6,0.10488915]
[1673972321549,24.52290549,1568.7,1568.6,0.10488915]
[1673972321890,27.34690549,1568.7,1568.6,0.10488915]
[1673972322072,27.60241597,1568.7,1568.6,0.10488915]
[1673972323073,27.63203323,1568.7,1568.6,0.10488915]
[1673972325854,19.96233323,1568.7,1568.6,0.10488915]
[1673972326065,13.35763323,1568.7,1568.6,0.10488915]
[1673972326332,13.83593323,1568.7,1568.6,0.10488915]
[1673972326502,3.61079868,1568.7,1568.6,0.10488915]
[1673972326695,3.51179868,1568.7,1568.6,0.10488915]
[1673972327054,10.36479868,1568.7,1568.6,0.10488915]
[1673972327233,10.46379868,1568.7,1568.6,0.10488915]
[1673972327950,17.83849868,1568.7,1568.6,0.10488915]
[1673972328387,20.24205255,1568.7,1568.6,0.10488915]
[1673972328838,13.86735255,1568.7,1568.6,0.10488915]
[1673972329049,10.46379868,1568.7,1568.6,0.10488915]
[1673972329421,16.83849868,1568.7,1568.6,0.10488915]
[1673972329632,17.83849868,1568.7,1568.6,0.10488915]
[1673972329875,24.21319868,1568.7,1568.6,0.10488915]
[1673972333241,27.32982275,1568.7,1568.6,0.10488915]
[1673972333457,36.67990783,1568.7,1568.6,0.00088915]
[1673972333636,33.20150903,1568.7,1568.6,0.00088915]
[1673972334620,27.79588496,1568.7,1568.6,0.00088915]
[1673972335159,9.13518142,1568.7,1568.6,0.00088915]
[1673972335376,14.50188142,1568.7,1568.6,0.00088915]
[1673972335536,6.57088142,1568.7,1568.6,0.00088915]
[1673972336684,0.19618142,1568.7,1568.6,0.00088915]
[1673972336896,0.09718142,1568.7,1568.6,0.00088915]
[1673972337736,19.22128142,1568.7,1568.6,0.00088915]
[1673972337946,22.87199856,1568.7,1568.6,0.00088915]
[1673972338283,22.90161582,1568.7,1568.6,0.00088915]
[1673972339468,23.37991582,1568.7,1568.6,0.00088915]
[1673972339993,10.60089856,1568.7,1568.6,0.00088915]
[1673972340212,7.04918142,1568.7,1568.6,0.00088915]
[1673972341028,0.19618142,1568.7,1568.5,12.858079]
[1673972341241,0.09718142,1568.7,1568.6,6.37511]
[1673972341414,0.09718142,1568.7,1568.6,12.75022]
[1673972341630,0.09718142,1568.7,1568.6,21.36688331]
[1673972343145,0.09718142,1568.7,1568.6,18.10839738]
[1673972343340,0.09718142,1568.7,1568.6,19.40139738]
[1673972343525,0.09718142,1568.7,1568.6,28.77650738]
[1673972346930,1.49116531,1568.7,1568.6,28.77650738]
[1673972347527,1.49116531,1568.7,1568.6,36.28824911]
[1673972348084,1.49116531,1568.7,1568.6,41.21609769]
[1673972348465,0.099,1569.2,1568.8,6.645]
[1673972348700,13.20707592,1569.5,1568.9,6.34662407]
[1673972348878,12.82807592,1569.5,1569.2,19.11777]
[1673972349090,12.82807592,1569.5,1569.2,22.23439407]
[1673972349711,25.57101592,1569.5,1569.1,6.43887]
[1673972349922,36.50581055,1569.5,1569.1,6.37287]
[1673972350146,36.50581055,1569.5,1569.0,14.27196]
[1673972350147,37.44891084,1569.5,1569.0,14.27196]
[1673972350402,12.74452,1569.3,1568.9,3.066]
[1673972350611,20.15888029,1569.3,1568.8,0.066]
[1673972350844,20.57841,1569.1,1568.7,0.39770871]
[1673972351035,20.70702726,1569.1,1568.7,0.39770871]
[1673972351414,19.24802726,1569.1,1568.7,6.77237871]
[1673972351638,25.72916726,1569.1,1568.7,6.77237871]
[1673972352483,7.85182,1569.0,1568.7,0.39770871]
[1673972352675,3.93529873,1569.0,1568.7,6.77239871]
[1673972352887,0.4782,1569.0,1568.7,13.14709871]
[1673972353933,0.4782,1569.0,1568.7,0.39770871]
[1673972353934,6.85169,1569.0,1568.7,0.39770871]
[1673972354149,6.95069,1569.0,1568.7,0.39770871]
[1673972354627,0.5772,1569.0,1568.7,6.77240871]
[1673972354797,0.4782,1569.0,1568.7,6.77240871]
[1673972355214,0.4782,1569.0,1568.7,13.14710871]
[1673972355850,0.4782,1569.0,1568.7,6.77240871]
[1673972356099,7.8517,1569.0,1568.7,6.77240871]
[1673972356323,11.30880273,1569.0,1568.7,0.39770871]
[1673972356475,1.0,1568.9,1568.7,0.39770871]
[1673972357425,24.05612273,1569.0,1568.7,0.39770871]
[1673972358358,1.0,1568.9,1568.7,0.39770871]
[1673972358813,24.05612273,1569.0,1568.7,0.39770871]
[1673972359029,11.30880273,1569.0,1568.7,6.77237871]
[1673972359246,10.30880273,1569.0,1568.7,6.77237871]
[1673972359568,6.9507,1569.0,1568.7,6.77237871]
[1673972359781,6.9507,1569.0,1568.9,6.37389]
[1673972359782,0.099,1569.0,1568.9,6.37389]
[1673972359931,13.36201726,1569.1,1568.9,6.37389]
[1673972359932,12.98291726,1569.1,1568.9,6.37389]
[1673972360142,12.98291726,1569.1,1568.8,6.43997]
[1673972360391,12.98291726,1569.1,1568.7,6.83817871]
[1673972360392,25.72915726,1569.1,1568.7,6.83817871]
[1673972360608,25.72915726,1569.1,1568.8,3.0]
[1673972360827,29.03367002,1569.1,1568.8,3.0]
[1673972361397,22.66055002,1569.1,1568.8,3.0]
[1673972362097,12.98291726,1569.1,1568.8,6.11662407]
[1673972362291,12.9533,1569.1,1568.8,25.23947407]
[1673972362968,12.9533,1569.1,1568.8,18.86518407]
[1673972363203,19.32638,1569.1,1568.8,12.49089407]